fUSD/lending_fUSD_20250716
["ID","MTS","AMOUNT","RATE_DAILY","PERIOD"]
[372597313,1752699054868,-460.0,0.00019972,2]
[372597315,1752699054878,-460.0,0.00019972,2]
[372597317,1752699054888,-460.0,0.00019972,2]
[372597319,1752699054897,-460.0,0.00019972,2]
[372597321,1752699054907,-460.0,0.00019972,2]
[372597323,1752699054916,-460.0,0.00019972,2]
[372597325,1752699054926,-460.0,0.00019972,2]
[372597327,1752699054935,-460.0,0.00019972,2]
[372597329,1752699054945,-353.4548458,0.00019972,2]
[372597331,1752699054955,-460.0,0.00019972,2]
[372597333,1752699054966,-460.0,0.00019972,2]
[372597336,1752699054988,-460.0,0.00019972,2]
[372597338,1752699054998,-460.0,0.00019972,2]
[372597340,1752699055007,-151.0,0.00019972,2]
[372597342,1752699055016,-151.0,0.00019972,2]
[372597343,1752699055025,-151.0,0.00019972,2]
[372597346,1752699055035,-151.0,0.00019972,2]
[372597348,1752699055046,-460.0,0.00019972,2]
[372597349,1752699055057,-500.0,0.00019972,2]
[372597352,1752699055067,-500.0,0.00019972,2]
[372597354,1752699055078,-500.0,0.00019972,2]
[372597355,1752699055088,-500.0,0.00019972,2]
[372597358,1752699055098,-175.287995,0.00019972,2]
[372597360,1752699055107,-175.287995,0.00019972,2]
[372597362,1752699055120,-151.0,0.00019972,2]
[372597364,1752699055130,-151.0,0.00019972,2]
[372597365,1752699055139,-175.287995,0.00019972,2]
[372597368,1752699055151,-175.287995,0.00019972,2]
[372597369,1752699055161,-1136.3,0.00019972,2]
[372597372,1752699055171,-1136.3,0.00019972,2]
[372597374,1752699055182,-1136.3,0.00019972,2]
[372597376,1752699055192,-1369.889984,0.00019972,2]
[372597378,1752699055202,-1369.889984,0.00019972,2]
[372597380,1752699055211,-1369.889984,0.00019972,2]
[372597382,1752699055222,-151.0,0.00019972,2]
[372597384,1752699055231,-151.0,0.00019972,2]
[372597386,1752699055242,-6107.943976,0.00019972,2]
[372597388,1752699055251,-6107.943976,0.00019972,2]
[372597390,1752699055261,-6107.943976,0.00019972,2]
[372597392,1752699055271,-6107.943976,0.00019972,2]
[372597394,1752699055281,-512.786224,0.00019972,2]
[372597396,1752699055291,-512.786224,0.00019972,2]
[372597398,1752699055302,-151.0,0.00019972,2]
[372597400,1752699055313,-151.0,0.00019972,2]
[372597402,1752699055322,-512.786224,0.00019972,2]
[372597404,1752699055332,-512.786224,0.00019972,2]
[372597405,1752699055342,-151.0,0.00019972,2]
[372597408,1752699055352,-151.0,0.00019972,2]
[372597409,1752699055361,-151.0,0.00019972,2]
[372597412,1752699055371,-151.0,0.00019972,2]
[372597414,1752699055381,-151.0,0.00019972,2]
[372597416,1752699055390,-151.0,0.00019972,2]
[372597417,1752699055400,-207.280654,0.00019972,2]
[372597420,1752699055410,-207.280654,0.00019972,2]
[372597421,1752699055419,-207.280654,0.00019972,2]
[372597423,1752699055428,-207.280654,0.00019972,2]
[372597425,1752699055438,-151.0,0.00019972,2]
[372597428,1752699055449,-151.0,0.00019972,2]
[372597430,1752699055459,-500.0,0.00019972,2]
[372597431,1752699055676,-500.0,0.00019972,2]
[372597433,1752699055686,-500.0,0.00019972,2]
[372597435,1752699055696,-151.0,0.00019972,2]
[372597437,1752699055705,-271.720183,0.00019972,2]
[372597439,1752699055715,-197.07251,0.00019972,2]
[372597441,1752699055725,-197.07251,0.00019972,2]
[372597443,1752699055736,-197.07251,0.00019972,2]
[372597445,1752699055745,-197.07251,0.00019972,2]
[372597447,1752699055755,-151.0,0.00019972,2]
[372597449,1752699055764,-198.03427328,0.00019972,2]
[372597451,1752699055774,-197.07251,0.00019972,2]
[372597453,1752699055783,-151.0,0.00019972,2]
[372597455,1752699055793,-151.0,0.00019972,2]
[372597457,1752699055802,-151.0,0.00019972,2]
[372597459,1752699055812,-197.07251,0.00019972,2]
[372597461,1752699055821,-197.07251,0.00019972,2]
[372597463,1752699055830,-197.07251,0.00019972,2]
[372597465,1752699055839,-197.07251,0.00019972,2]
[372597467,1752699055848,-197.072519,0.00019972,2]
[372597469,1752699055857,-414.435015,0.00019972,2]
[372597471,1752699055867,-414.435015,0.00019972,2]
[372597473,1752699055876,-414.435015,0.00019972,2]
[372597475,1752699055885,-414.435015,0.00019972,2]
[372597477,1752699055894,-151.0,0.00019972,2]
[372597479,1752699055904,-151.0,0.00019972,2]
[372597481,1752699055914,-151.0,0.00019972,2]
[372597483,1752699055923,-151.0,0.00019972,2]
[372597485,1752699055933,-151.0,0.00019972,2]
[372597487,1752699055942,-232.995028,0.00019972,2]
[372597489,1752699055951,-367.0543343,0.00019972,2]
[372597491,1752699055961,-275.988955,0.00019972,2]
[372597493,1752699055971,-275.988955,0.00019972,2]
[372597495,1752699055981,-275.988955,0.00019972,2]
[372597497,1752699055990,-275.988955,0.00019972,2]
[372597499,1752699055999,-500.0,0.00019972,2]
[372597501,1752699056009,-500.0,0.00019972,2]
[372597503,1752699056018,-500.0,0.00019972,2]
[372597505,1752699056027,-500.0,0.00019972,2]
[372597507,1752699056037,-344.82493385,0.00019972,2]
[372597509,1752699056046,-500.0,0.00019972,2]
[372597511,1752699056055,-500.0,0.00019972,2]
[372597513,1752699056065,-500.0,0.00019972,2]
[372597515,1752699056074,-151.0,0.00019972,2]
[372597516,1752699056083,-151.0,0.00019972,2]
[372597519,1752699056095,-151.0,0.00019972,2]
[372597521,1752699056104,-151.0,0.00019972,2]
[372597523,1752699056115,-151.0,0.00019972,2]
[372597524,1752699056128,-151.0,0.00019972,2]
[372597549,1752699056422,-151.0,0.00019972,2]
[372597553,1752699056484,-151.0,0.00019972,2]
[372597555,1752699056494,-151.0,0.00019972,2]
[372597557,1752699056505,-151.0,0.00019972,2]
[372597559,1752699056514,-151.0,0.00019972,2]
[372597561,1752699056523,-151.0,0.00019972,2]
[372597563,1752699056532,-500.0,0.00019972,2]
[372597565,1752699056542,-500.0,0.00019972,2]
[372597567,1752699056551,-500.0,0.00019972,2]
[372597569,1752699056561,-369.229617,0.00019972,2]
[372597571,1752699056571,-369.229617,0.00019972,2]
[372597573,1752699056580,-369.229617,0.00019972,2]
[372597575,1752699056590,-369.229617,0.00019972,2]
[372597577,1752699056602,-369.229617,0.00019972,2]
[372597579,1752699056611,-369.229617,0.00019972,2]
[372597581,1752699056621,-369.229617,0.00019972,2]
[372597583,1752699056630,-369.229617,0.00019972,2]
[372597585,1752699056639,-369.229617,0.00019972,2]
[372597587,1752699056649,-369.229625,0.00019972,2]
[372597589,1752699056658,-886.905865,0.00019972,2]
[372597591,1752699056668,-886.905868,0.00019972,2]
[372597594,1752699056678,-162.34939,0.00019972,2]
[372597595,1752699056689,-1722.027227,0.00019972,2]
[372597598,1752699056699,-1722.027227,0.00019972,2]
[372597600,1752699056708,-1722.027227,0.00019972,2]
[372597602,1752699056718,-1722.027227,0.00019972,2]
[372597604,1752699056728,-1722.027227,0.00019972,2]
[372597606,1752699056738,-1722.027227,0.00019972,2]
[372597608,1752699056747,-1722.027227,0.00019972,2]
[372597610,1752699056757,-1722.027227,0.00019972,2]
[372597612,1752699056768,-1722.027227,0.00019972,2]
[372597614,1752699056777,-1722.027225,0.00019972,2]
[372597616,1752699056790,-151.0,0.00019972,2]
[372597618,1752699056800,-151.0,0.00019972,2]
[372597620,1752699056810,-151.0,0.00019972,2]
[372597622,1752699056819,-500.0,0.00019972,2]
[372597624,1752699056829,-151.0,0.00019972,2]
[372597626,1752699056838,-500.0,0.00019972,2]
[372597628,1752699056848,-151.0,0.00019972,2]
[372597630,1752699056857,-318.349682,0.00019972,2]
[372597632,1752699056867,-318.349682,0.00019972,2]
[372597634,1752699056876,-318.349682,0.00019972,2]
[372597636,1752699056886,-318.349682,0.00019972,2]
[372597638,1752699056895,-1500.0,0.00019972,7]
[372597640,1752699056904,-1500.0,0.00019972,7]
[372597642,1752699056914,-1500.0,0.00019972,7]
[372597644,1752699056923,-1500.0,0.00019972,7]
[372597646,1752699056933,-1500.0,0.00019972,7]
[372597648,1752699056942,-318.349682,0.00019972,2]
[372597650,1752699056951,-318.349682,0.00019972,2]
[372597652,1752699056961,-318.349682,0.00019972,2]
[372597654,1752699056971,-318.349684,0.00019972,2]
[372597656,1752699056981,-1500.0,0.00019972,7]
[372597658,1752699056990,-1500.0,0.00019972,7]
[372597660,1752699056999,-1500.0,0.00019972,7]
[372597662,1752699057009,-1500.0,0.00019972,7]
[372597664,1752699057018,-1500.0,0.00019972,7]
[372597666,1752699057028,-1500.0,0.00019972,7]
[372597668,1752699057037,-1500.0,0.00019972,7]
[372597670,1752699057047,-1500.0,0.00019972,7]
[372597672,1752699057056,-1500.0,0.00019972,7]
[372597674,1752699057065,-1500.0,0.00019972,7]
[372597676,1752699057075,-1500.0,0.00019972,7]
[372597678,1752699057084,-1500.0,0.00019972,7]
[372597680,1752699057093,-500.0,0.00019972,2]
[372597682,1752699057102,-1500.0,0.00019972,7]
[372597684,1752699057112,-500.0,0.00019972,2]
[372597686,1752699057124,-1500.0,0.00019972,7]
[372597688,1752699057133,-1500.0,0.00019972,7]
[372597690,1752699057142,-443.178578,0.00019972,7]
[372597692,1752699057152,-593.01,0.00019972,2]
[372597694,1752699057162,-151.0,0.00019972,2]
[372597696,1752699057172,-151.0,0.00019972,2]
[372597698,1752699057182,-460.0,0.00019972,2]
[372597700,1752699057192,-151.0,0.00019972,2]
[372597702,1752699057207,-151.0,0.00019972,2]
[372597704,1752699057217,-151.0,0.00019972,2]
[372597706,1752699057227,-151.0,0.00019972,2]
[372597708,1752699057238,-297.986639,0.00019972,2]
[372597710,1752699057248,-1223.2,0.00019972,2]
[372597713,1752699057258,-1258.28,0.00019972,2]
[372597715,1752699057269,-269.318438,0.00019972,2]
[372597717,1752699057280,-269.318428,0.00019972,2]
[372597719,1752699057290,-1051.63,0.00019972,2]
[372597721,1752699057300,-500.0,0.00019972,2]
[372597723,1752699057310,-500.0,0.00019972,2]
[372597725,1752699057320,-151.0,0.00019972,2]
[372597727,1752699057330,-151.0,0.00019972,2]
[372597729,1752699057340,-4207.95,0.00019972,2]
[372597731,1752699057350,-15970.92,0.00019972,2]
[372597733,1752699057359,-2175.48,0.00019972,2]
[372597735,1752699057369,-151.0,0.00019972,2]
[372597737,1752699057379,-263.737937,0.00019972,2]
[372597739,1752699057388,-1732.25,0.00019972,2]
[372597741,1752699057398,-3014.57,0.00019972,2]
[372597743,1752699057408,-7760.31,0.00019972,2]
[372597745,1752699057418,-1115.18,0.00019972,2]
[372597747,1752699057428,-1996.89,0.00019972,2]
[372597749,1752699057438,-10722.05,0.00019972,2]
[372597751,1752699057448,-839.05,0.00019972,2]
[372597754,1752699057458,-2534.13,0.00019972,2]
[372597756,1752699057469,-582.07,0.00019972,2]
[372597758,1752699057479,-582.07,0.00019972,2]
[372597760,1752699057488,-582.07,0.00019972,2]
[372597762,1752699057498,-2408.69,0.00019972,2]
[372597764,1752699057507,-1448.89,0.00019972,2]
[372597766,1752699057517,-10350.5,0.00019972,2]
[372597768,1752699057527,-2296.31,0.00019972,2]
[372597770,1752699057537,-2104.36,0.00019972,2]
[372597772,1752699057547,-500.0,0.00019972,2]
[372597774,1752699057556,-500.0,0.00019972,2]
[372597776,1752699057566,-500.0,0.00019972,2]
[372597778,1752699057576,-500.0,0.00019972,2]
[372597780,1752699057586,-500.0,0.00019972,2]
[372597782,1752699057596,-2499.97,0.00019972,2]
[372597784,1752699057606,-2499.97,0.00019972,2]
[372597786,1752699057617,-7888.24,0.00019972,2]
[372597788,1752699057627,-1388.63,0.00019972,2]
[372597790,1752699057637,-47084.71,0.00019972,2]
[372597792,1752699057647,-6881.14,0.00019972,2]
[372597794,1752699057657,-4559.37,0.00019972,2]
[372597796,1752699057666,-8096.14,0.00019972,2]
[372597798,1752699057676,-1000.0,0.00019972,2]
[372597800,1752699057685,-1252.18,0.00019972,2]
[372597803,1752699057695,-460.0,0.00019972,2]
[372597805,1752699057705,-2241.29,0.00019972,2]
[372597807,1752699057716,-1641.63,0.00019972,2]
[372597809,1752699057726,-185.955213,0.00019972,2]
[372597811,1752699057736,-185.955213,0.00019972,2]
[372597813,1752699057746,-185.955213,0.00019972,2]
[372597815,1752699057757,-185.955213,0.00019972,2]
[372597817,1752699057767,-185.955213,0.00019972,2]
[372597819,1752699057778,-500.0,0.00019973,2]
[372597821,1752699057789,-500.0,0.00019973,2]
[372597823,1752699057799,-500.0,0.00019973,2]
[372597825,1752699057808,-324.04670566,0.00019973,2]
[372597827,1752699057818,-500.0,0.00019973,2]
[372597829,1752699057828,-500.0,0.00019973,2]
[372597831,1752699057837,-500.0,0.00019973,2]
[372597833,1752699057847,-159.61886112,0.00019973,2]
[372597835,1752699057859,-525.56307787,0.00019973,2]
[372597837,1752699057869,-319.57962574,0.00019973,2]
[372597839,1752699057879,-500.0,0.00019973,2]
[372597841,1752699057889,-500.0,0.00019973,2]
[372597843,1752699057900,-500.0,0.00019973,2]
[372597845,1752699057910,-500.0,0.00019973,2]
[372597847,1752699057920,-500.0,0.00019973,2]
[372597849,1752699057931,-500.0,0.00019973,2]
[372597851,1752699057940,-500.0,0.00019973,2]
[372597854,1752699057951,-162.15171081,0.00019973,2]
[372597856,1752699057960,-334.89974559,0.00019973,2]
[372597858,1752699057970,-500.0,0.00019973,2]
[372597860,1752699057979,-500.0,0.00019973,2]
[372597862,1752699057989,-158.61656341,0.00019973,2]
[372597864,1752699057999,-500.0,0.00019973,2]
[372597866,1752699058009,-501.16544689,0.00019973,2]
[372597868,1752699058019,-500.0,0.00019973,2]
[372597870,1752699058029,-305.91787479,0.00019973,2]
[372597872,1752699058039,-159.62056644,0.00019973,2]
[372597874,1752699058048,-500.0,0.00019973,2]
[372597876,1752699058058,-500.0,0.00019973,2]
[372597878,1752699058068,-500.0,0.00019973,2]
[372597880,1752699058078,-500.0,0.00019973,2]
[372597882,1752699058087,-500.0,0.00019973,2]
[372597884,1752699058097,-500.0,0.00019973,2]
[372597886,1752699058107,-500.35165248,0.00019973,2]
[372597888,1752699058117,-163.99595494,0.00019973,2]
[372597890,1752699058130,-500.0,0.00019973,2]
[372597892,1752699058140,-500.0,0.00019973,2]
[372597894,1752699058149,-610.28682727,0.00019973,2]
[372597896,1752699058159,-154.49201394,0.00019973,2]
[372597898,1752699058170,-150.0,0.00019973,2]
[372597900,1752699058180,-460.0,0.00019973,2]
[372597902,1752699058191,-571.22119775,0.00019973,2]
[372597904,1752699058203,-460.0,0.00019973,2]
[372597907,1752699058214,-564.28052442,0.00019973,2]
[372597909,1752699058224,-464.13024322,0.00019973,2]
[372597911,1752699058234,-460.0,0.00019973,2]
[372597913,1752699058244,-460.0,0.00019973,2]
[372597915,1752699058254,-460.0,0.00019973,2]
[372597917,1752699058263,-460.0,0.00019973,2]
[372597919,1752699058273,-460.0,0.00019973,2]
[372597921,1752699058283,-460.0,0.00019973,2]
[372597923,1752699058293,-461.17828677,0.00019973,2]
[372597925,1752699058303,-462.85104393,0.00019973,2]
[372597926,1752699058313,-461.20147685,0.00019973,2]
[372597927,1752699058322,-151.0,0.00019973,2]
[372597928,1752699058332,-151.0,0.00019973,2]
[372597929,1752699058341,-166.49185769,0.00019973,2]
[372597930,1752699058352,-506.74815511,0.00019973,2]
[372597931,1752699058362,-460.0,0.00019973,2]
[372597932,1752699058371,-460.0,0.00019973,2]
[372597933,1752699058381,-461.8295467,0.00019973,2]
[372597934,1752699058390,-502.41539308,0.00019973,2]
[372597936,1752699058400,-460.0,0.00019973,2]
[372597938,1752699058410,-602.84236023,0.00019973,2]
[372597940,1752699058420,-460.0,0.00019973,2]
[372597942,1752699058430,-460.0,0.00019973,2]
[372597944,1752699058439,-460.0,0.00019973,2]
[372597946,1752699058449,-460.0,0.00019973,2]
[372597948,1752699058459,-460.0,0.00019973,2]
[372597950,1752699058469,-460.0,0.00019973,2]
[372597952,1752699058481,-460.0,0.00019973,2]
[372597954,1752699058491,-460.0,0.00019973,2]
[372597956,1752699058502,-460.0,0.00019973,2]
[372597958,1752699058512,-460.0,0.00019973,2]
[372597960,1752699058521,-460.0,0.00019973,2]
[372597962,1752699058531,-460.0,0.00019973,2]
[372597964,1752699058541,-460.0,0.00019973,2]
[372597966,1752699058550,-460.0,0.00019973,2]
[372597968,1752699058560,-460.0,0.00019973,2]
[372597970,1752699058571,-502.94489426,0.00019973,2]
[372597972,1752699058580,-460.0,0.00019973,2]
[372597974,1752699058589,-460.0,0.00019973,2]
[372597976,1752699058599,-247.332958,0.00019973,2]
[372597978,1752699058608,-460.0,0.00019973,2]
[372597980,1752699058618,-460.0,0.00019973,2]
[372597982,1752699058627,-460.0,0.00019973,2]
[372597984,1752699058637,-506.58495378,0.00019973,2]
[372597986,1752699058647,-460.0,0.00019973,2]
[372597988,1752699058656,-1490.253283,0.00019973,2]
[372597990,1752699058666,-1490.253283,0.00019973,2]
[372597992,1752699058675,-1490.253283,0.00019973,2]
[372597994,1752699058685,-1490.253283,0.00019973,2]
[372597996,1752699058694,-460.0,0.00019973,2]
[372597998,1752699058704,-460.0,0.00019973,2]
[372598000,1752699058714,-460.0,0.00019973,2]
[372598002,1752699058724,-460.0,0.00019973,2]
[372598004,1752699058733,-384.79988552,0.00019973,2]
[372598006,1752699058743,-460.0,0.00019973,2]
[372598008,1752699058752,-561.55591145,0.00019973,2]
[372598010,1752699058762,-460.0,0.00019973,2]
[372598012,1752699058771,-269.97167073,0.00019973,2]
[372598014,1752699058781,-462.08568539,0.00019973,2]
[372598017,1752699058791,-558.81334198,0.00019973,2]
[372598019,1752699058800,-460.0,0.00019973,2]
[372598021,1752699058810,-460.0,0.00019973,2]
[372598023,1752699058819,-461.80770445,0.00019973,2]
[372598025,1752699058829,-460.0,0.00019973,2]
[372598027,1752699058839,-460.0,0.00019973,2]
[372598029,1752699058849,-460.0,0.00019973,2]
[372598031,1752699058858,-460.0,0.00019973,2]
[372598033,1752699058868,-460.0,0.00019973,2]
[372598035,1752699058878,-175.287995,0.00019973,2]
[372598037,1752699058887,-175.287995,0.00019973,2]
[372598039,1752699058897,-151.0,0.00019973,2]
[372598053,1752699059022,-175.287995,0.00019973,2]
[372598055,1752699059032,-151.0,0.00019973,2]
[372598057,1752699059042,-175.287995,0.00019973,2]
[372598059,1752699059052,-151.0,0.00019973,2]
[372598061,1752699059062,-175.287995,0.00019973,2]
[372598063,1752699059071,-460.0,0.00019973,2]
[372598065,1752699059080,-175.287995,0.00019973,2]
[372598067,1752699059089,-175.287995,0.00019973,2]
[372598069,1752699059098,-175.287995,0.00019973,2]
[372598071,1752699059108,-490.0,0.00019973,2]
[372598073,1752699059121,-175.287995,0.00019973,2]
[372598075,1752699059130,-175.287995,0.00019973,2]
[372598077,1752699059139,-175.287995,0.00019973,2]
[372598079,1752699059148,-175.287995,0.00019973,2]
[372598081,1752699059159,-175.287995,0.00019973,2]
[372598083,1752699059169,-175.28799,0.00019973,2]
[372598085,1752699059178,-480.8231549,0.00019973,2]
[372598087,1752699059187,-460.0,0.00019973,2]
[372598089,1752699059199,-1136.3,0.00019973,2]
[372598091,1752699059207,-1136.3,0.00019973,2]
[372598093,1752699059216,-1369.889984,0.00019973,2]
[372598095,1752699059226,-1369.889984,0.00019973,2]
[372598097,1752699059235,-1369.889984,0.00019973,2]
[372598099,1752699059244,-1369.889984,0.00019973,2]
[372598101,1752699059253,-1369.889984,0.00019973,2]
[372598103,1752699059263,-1369.889984,0.00019973,2]
[372598105,1752699059273,-1369.889984,0.00019973,2]
[372598107,1752699059284,-1369.889984,0.00019973,2]
[372598109,1752699059293,-460.0,0.00019973,2]
[372598111,1752699059303,-1369.889984,0.00019973,2]
[372598113,1752699059312,-1369.889984,0.00019973,2]
[372598115,1752699059322,-460.0,0.00019973,2]
[372598117,1752699059333,-1369.889984,0.00019973,2]
[372598119,1752699059345,-1369.889984,0.00019973,2]
[372598121,1752699059355,-1369.889984,0.00019973,2]
[372598123,1752699059365,-1369.889992,0.00019973,2]
[372598124,1752699059375,-460.0,0.00019973,2]
[372598127,1752699059386,-460.0,0.00019973,2]
[372598129,1752699059396,-460.0,0.00019973,2]
[372598130,1752699059405,-876.74,0.00019973,2]
[372598132,1752699059415,-460.0,0.00019973,2]
[372598134,1752699059424,-410.6349944,0.00019973,2]
[372598136,1752699059434,-500.0,0.00019973,2]
[372598138,1752699059443,-500.0,0.00019973,2]
[372598140,1752699059452,-460.0,0.00019973,2]
[372598142,1752699059462,-203.84071348,0.00019973,2]
[372598144,1752699059472,-151.0,0.00019973,2]
[372598146,1752699059481,-151.0,0.00019973,2]
[372598148,1752699059490,-151.0,0.00019973,2]
[372598150,1752699059499,-151.0,0.00019973,2]
[372598152,1752699059508,-460.0,0.00019973,2]
[372598154,1752699059518,-460.0,0.00019973,2]
[372598156,1752699059527,-151.0,0.00019973,2]
[372598158,1752699059536,-460.0,0.00019973,2]
[372598160,1752699059546,-6107.943976,0.00019973,2]
[372598162,1752699059555,-6107.943976,0.00019973,2]
[372598164,1752699059564,-6107.943976,0.00019973,2]
[372598166,1752699059573,-5055.48918163,0.00019973,2]
[372598234,1752699060301,-436.06559965,0.00019973,2]
[372598238,1752699060326,-1181.28926848,0.00019918,2]
[372598240,1752699060338,-1212.95073152,0.00019918,2]
[372598242,1752699060348,-227.36902886,0.00019973,2]
[372598246,1752699060372,-460.0,0.00019909,2]
[372598248,1752699060382,-185.955213,0.00019918,2]
[372598250,1752699060391,-389.02016586,0.00019973,2]
[372598252,1752699060401,-6107.943976,0.00019973,2]
[372598254,1752699060410,-6107.943976,0.00019973,2]
[372598256,1752699060419,-6107.943976,0.00019973,2]
[372598258,1752699060429,-6107.943976,0.00019973,2]
[372598260,1752699060438,-460.0,0.00019973,2]
[372598262,1752699060447,-460.0,0.00019973,2]
[372598264,1752699060457,-6107.943976,0.00019973,2]
[372598266,1752699060466,-6107.943976,0.00019973,2]
[372598268,1752699060477,-460.0,0.00019973,2]
[372598270,1752699060487,-460.0,0.00019973,2]
[372598272,1752699060496,-3772.34675751,0.00019973,2]
[372598282,1752699060593,-2335.59721849,0.00019973,2]
[372598284,1752699060604,-2062.32700519,0.00019973,2]
[372598359,1752699061322,-460.0,0.00019772,2]
[372598361,1752699061331,-140.86929527,0.00019909,2]
[372598363,1752699061343,-319.13070473,0.00019909,2]
[372598365,1752699061352,-180.86929527,0.0001996,2]
[372598367,1752699061363,-5.08591773,0.0001996,2]
[372598369,1752699061372,-185.955213,0.00019972,2]
[372598371,1752699061382,-185.955213,0.00019972,2]
[372598373,1752699061391,-185.955213,0.00019972,2]
[372598375,1752699061400,-185.955213,0.00019972,2]
[372598377,1752699061409,-4045.61697081,0.00019973,2]
[372598379,1752699061419,-460.0,0.00019973,2]
[372598381,1752699061428,-6107.943976,0.00019973,2]
[372598383,1752699061437,-2282.50213781,0.00019973,2]
[372598385,1752699061452,-1358.58,0.00019973,2]
[372598387,1752699061463,-308.563,0.00019973,2]
[372598389,1752699061475,-1199.536834,0.00019973,2]
[372598392,1752699061487,-958.76200419,0.00019973,2]
[372598394,1752699061495,-1677.99543664,0.00019973,2]
[372598396,1752699061506,-4429.94853936,0.00019973,2]
[372598398,1752699061515,-460.0,0.00019973,2]
[372598400,1752699061524,-512.786224,0.00019973,2]
[372598402,1752699061533,-6107.943973,0.00019973,2]
[372598403,1752699061542,-512.786224,0.00019973,2]
[372598405,1752699061551,-460.0,0.00019973,2]
[372598407,1752699061561,-512.786224,0.00019973,2]
[372598409,1752699061570,-512.786224,0.00019973,2]
[372598411,1752699061579,-512.786224,0.00019973,2]
[372598414,1752699061590,-512.786224,0.00019973,2]
[372598416,1752699061599,-512.786224,0.00019973,2]
[372598418,1752699061609,-248.51083,0.00019973,2]
[372598419,1752699061618,-512.786224,0.00019973,2]
[372598422,1752699061628,-512.786224,0.00019973,2]
[372598423,1752699061637,-512.786224,0.00019973,2]
[372598426,1752699061646,-512.786224,0.00019973,2]
[372598428,1752699061656,-460.0,0.00019973,2]
[372598429,1752699061665,-512.786224,0.00019973,2]
[372598431,1752699061675,-512.786224,0.00019973,2]
[372598434,1752699061684,-512.786222,0.00019973,2]
[372598435,1752699061693,-460.0,0.00019973,2]
[372598437,1752699061702,-460.0,0.00019973,2]
[372598439,1752699061711,-232.250992,0.00019973,2]
[372598441,1752699061722,-460.0,0.00019973,2]
[372598443,1752699061731,-460.0,0.00019973,2]
[372598445,1752699061740,-1320.85,0.00019973,2]
[372598447,1752699061749,-460.0,0.00019973,2]
[372598449,1752699061758,-333.34694823,0.00019973,2]
[372598451,1752699061767,-460.0,0.00019973,2]
[372598453,1752699061777,-151.0,0.00019973,2]
[372598455,1752699061786,-460.0,0.00019973,2]
[372598457,1752699061796,-151.0,0.00019973,2]
[372598459,1752699061805,-151.0,0.00019973,2]
[372598461,1752699061814,-460.0,0.00019973,2]
[372598463,1752699061823,-151.0,0.00019973,2]
[372598465,1752699061833,-460.0,0.00019973,2]
[372598467,1752699061842,-151.0,0.00019973,2]
[372598469,1752699061851,-460.0,0.00019973,2]
[372598470,1752699061860,-491.73909704,0.00019973,2]
[372598471,1752699061869,-460.0,0.00019973,2]
[372598472,1752699061878,-315.70036367,0.00019973,2]
[372598473,1752699061890,-144.29963633,0.00019973,2]
[372598474,1752699061899,-504.88,0.00019973,2]
[372598475,1752699061908,-460.0,0.00019973,2]
[372598476,1752699061918,-603.32227239,0.00019973,2]
[372598477,1752699061927,-460.0,0.00019973,2]
[372598479,1752699061937,-460.0,0.00019973,2]
[372598481,1752699061946,-346.20367913,0.00019973,2]
[372598483,1752699061961,-113.79632087,0.00019973,2]
[372598485,1752699061971,-460.0,0.00019973,2]
[372598487,1752699061980,-301.27787888,0.00019973,2]